[Event "EYCC G10-ch 2024"]
[Site "Prague"]
[Date "2024.08.26"]
[Round "5.14"]
[White "Smilic, Nina"]
[Black "Aragonda, Sahasra"]
[Result "1-0"]
[ECO "E16"]
[WhiteElo "1515"]
[BlackElo "1617"]
[Annotator "NA RC COMBH"]
[PlyCount "87"]
[EventDate "2024.08.19"]
[EventType "swiss"]
[EventCountry "CZE"]
[SourceTitle "playchess.com"]
[Source "ChessBase"]
[SourceQuality "1"]
[TimeControl "5400+30"]

1. d4 {[%emt 0:00:01]} Nf6 {[%emt 0:00:09]} 2. Nf3 {[%emt 0:00:57]} e6 {[%emt 0:00:39]} 3. c4 {[%emt 0:00:21]} Bb4+ {[%emt 0:00:25]} 4. Bd2 {[%emt 0:00:25]} Qe7 {[%emt 0:00:31]} 5. a3 {[%emt 0:00:38]} Bxd2+ {[%emt 0:01:34]} 6. Qxd2 {[%emt 0:00:31]} b6 {[%emt 0:03:23]} 7. e3 {[%emt 0:02:02]} a5 {[%emt 0:03:48]} 8. Nc3 {[%emt 0:02:03]} Bb7 {[%emt 0:04:53]} 9. Be2 {[%emt 0:01:06]} O-O {[%emt 0:05:38]} 10. O-O {[%emt 0:01:22]} d6 {[%emt 0:03:37]} 11. Qc2 {[%emt 0:05:26]} Nbd7 {[%emt 0:09:21]} 12. Rfe1 {[%emt 0:07:30]} e5 {[%emt 0:13:12]} 13. Rad1 {[%emt 0:06:48]} Rfd8 {[%emt 0:18:21]} 14. d5 {[%emt 0:07:10]} Nc5 {[%emt 0:08:28]} 15. b4 {[%emt 0:06:23]} axb4 {[%emt 0:00:28]} 16. axb4 {[%emt 0:00:17]} Ncd7 {[%emt 0:00:19]} 17. Ne4 {[%emt 0:04:41]} Ra7 {[%emt 0:03:35]} 18. Ra1 {[%emt 0:04:09]} Rda8 {[%emt 0:00:14]} 19. Rxa7 {[%emt 0:00:38]} Rxa7 {[%emt 0:00:04]} 20. Nfd2 {[%emt 0:01:59]} c6 {[%emt 0:02:10]} 21. dxc6 {[%emt 0:06:08]} Bxc6 {[%emt 0:00:06]} 22. Bf3 {[%emt 0:01:44]} Bxe4 {[%emt 0:01:26]} 23. Nxe4 {[%emt 0:03:46]} d5 {[%emt 0:03:00]} 24. Nxf6+ {[%emt 0:07:21]} gxf6 {[%emt 0:01:30]} 25. Bxd5 {[%emt 0:01:23]} Qxb4 {[%emt 0:00:38]} 26. Rb1 {[%emt 0:02:01]} Qa5 {[%emt 0:01:46]} 27. Qb2 {[%emt 0:02:39]} Qa4 {[%emt 0:02:47]} 28. h3 {[%emt 0:02:16]} Ra6 {[%emt 0:02:48]} 29. Qe2 {[%emt 0:04:05]} Kf8 {[%emt 0:02:54]} 30. Qh5 {[%emt 0:01:31]} Ke8 {[%emt 0:00:26]} 31. Qxf7+ {[%emt 0:00:52]} Kd8 {[%emt 0:00:11]} 32. Qxh7 {[%emt 0:02:09]} Ra5 {[%emt 0:02:31]} 33. Qf5 {[%emt 0:03:16]} Qa2 {[%emt 0:03:08]} 34. Rd1 {[%emt 0:02:59]} Qa4 {[%emt 0:02:58]} 35. Bf3 {[%emt 0:02:18]} Ra7 {[%emt 0:00:17]} 36. Qxf6+ {[%emt 0:00:43]} Kc8 {[%emt 0:00:15]} 37. Qe6 {[%emt 0:02:44]} Kb8 {[%emt 0:00:34]} 38. Qe8+ {[%emt 0:00:53]} Kc7 {[%emt 0:00:14]} 39. Bg4 {[%emt 0:00:44]} Qxd1+ {[%emt 0:01:01]} 40. Bxd1 {[%emt 0:00:14]} Ra1 {[%emt 0:00:05]} 41. Qh5 {[%emt 0:00:36]} Kc6 {[%emt 0:00:12]} 42. Kh2 {[%emt 0:00:32]} Rc1 {[%emt 0:00:11]} 43. Ba4+ {[%emt 0:00:47]} Kc7 {[%emt 0:00:17]} 44. Qf7 {[%emt 0:00:29]} 1-0

[Event "EYCC G10-ch 2024"]
[Site "Prague"]
[Date "2024.08.28"]
[Round "6.1"]
[White "Bakhshi, Rana"]
[Black "Chen, Yuefan"]
[Result "0-1"]
[ECO "D86"]
[WhiteElo "1732"]
[BlackElo "1682"]
[Annotator "NA RC COMBH"]
[PlyCount "82"]
[EventDate "2024.08.19"]
[EventType "swiss"]
[EventCountry "CZE"]
[SourceTitle "playchess.com"]
[Source "ChessBase"]
[SourceQuality "1"]
[TimeControl "5400+30"]

1. d4 {[%emt 0:00:24]} Nf6 {[%emt 0:00:05]} 2. c4 {[%emt 0:01:04]} g6 {[%emt 0:00:07]} 3. Nc3 {[%emt 0:01:05]} d5 {[%emt 0:00:13]} 4. cxd5 {[%emt 0:00:51]} Nxd5 {[%emt 0:00:07]} 5. e4 {[%emt 0:00:44]} Nxc3 {[%emt 0:00:11]} 6. bxc3 {[%emt 0:00:45]} Bg7 {[%emt 0:00:12]} 7. Bc4 {[%emt 0:00:44]} c5 {[%emt 0:00:18]} 8. Be3 {[%emt 0:00:47]} O-O {[%emt 0:02:36]} 9. Ne2 {[%emt 0:00:53]} Nc6 {[%emt 0:00:56]} 10. Rc1 {[%emt 0:02:08]} Qa5 {[%emt 0:07:44]} 11. O-O {[%emt 0:06:23]} e6 {[%emt 0:15:27]} 12. Rc2 {[%emt 0:09:05]} b5 {[%emt 0:04:34]} 13. Bxb5 {[%emt 0:01:10]} Qxb5 {[%emt 0:00:23]} 14. Ng3 {[%emt 0:03:03]} Rd8 {[%emt 0:06:19]} 15. c4 {[%emt 0:04:15]} Qa4 {[%emt 0:11:46]} 16. d5 {[%emt 0:08:40]} Nb4 {[%emt 0:03:21]} 17. Rd2 {[%emt 0:01:49]} Qxd1 {[%emt 0:01:31]} 18. Rfxd1 {[%emt 0:03:49]} Bc3 {[%emt 0:00:43]} 19. Re2 {[%emt 0:00:23]} Ba6 {[%emt 0:05:03]} 20. Bxc5 {[%emt 0:02:44]} Bxc4 {[%emt 0:03:34]} 21. Re3 {[%emt 0:02:23]} Nxa2 {[%emt 0:03:31]} 22. d6 {[%emt 0:03:29]} e5 {[%emt 0:08:29]} 23. h3 {[%emt 0:06:16]} Rd7 {[%emt 0:05:07]} 24. Ne2 {[%emt 0:02:03]} Ba5 {[%emt 0:04:05]} 25. Ra3 {[%emt 0:01:12]} Bxe2 {[%emt 0:01:32]} 26. Ra1 {[%emt 0:02:29]} Bb4 {[%emt 0:00:08]} 27. R3xa2 {[%emt 0:00:11]} Bxc5 {[%emt 0:00:30]} 28. Rxe2 {[%emt 0:00:30]} Rxd6 {[%emt 0:00:30]} 29. Rea2 {[%emt 0:00:30]} Rad8 {[%emt 0:00:30]} 30. Kh2 {[%emt 0:06:00]} Rd1 {[%emt 0:00:00]} 31. Rxd1 {[%emt 0:00:26]} Rxd1 {[%emt 0:00:00]} 32. Ra5 {[%emt 0:00:20]} Bd4 {[%emt 0:00:58]} 33. Rd5 {[%emt 0:02:26]} Ra1 {[%emt 0:02:12]} 34. f4 {[%emt 0:01:57]} Re1 {[%emt 0:01:28]} 35. f5 {[%emt 0:02:59]} Rf1 {[%emt 0:00:28]} 36. g4 Rf4 37. h4 {[%emt 0:02:52]} gxf5 {[%emt 0:00:57]} 38. gxf5 {[%emt 0:01:20]} Rxh4+ {[%emt 0:00:25]} 39. Kg3 {[%emt 0:02:55]} Rxe4 {[%emt 0:00:23]} 40. f6 {[%emt 0:02:03]} Bb6 {[%emt 0:00:36]} 41. Kg2 {[%emt 0:01:01]} Rf4 {[%emt 0:00:09]} 0-1

[Event "EYCC G10-ch 2024"]
[Site "Prague"]
[Date "2024.08.28"]
[Round "6.2"]
[White "Ahmadli, Mehriban"]
[Black "Slusarczyk, Agnieszka"]
[Result "1/2-1/2"]
[ECO "C63"]
[WhiteElo "1646"]
[BlackElo "1614"]
[Annotator "NA RC COMBH"]
[PlyCount "102"]
[EventDate "2024.08.19"]
[EventType "swiss"]
[EventCountry "CZE"]
[SourceTitle "playchess.com"]
[Source "ChessBase"]
[SourceQuality "1"]
[TimeControl "5400+30"]

1. e4 {[%emt 0:00:01]} e5 {[%emt 0:00:23]} 2. Nf3 {[%emt 0:00:06]} Nc6 {[%emt 0:00:12]} 3. Bb5 {[%emt 0:00:10]} f5 {[%emt 0:00:57]} 4. d3 {[%emt 0:00:06]} fxe4 {[%emt 0:00:40]} 5. dxe4 {[%emt 0:00:02]} Nf6 {[%emt 0:00:50]} 6. O-O {[%emt 0:00:12]} Bc5 {[%emt 0:01:29]} 7. Bxc6 {[%emt 0:01:26]} bxc6 {[%emt 0:00:42]} 8. Nxe5 {[%emt 0:01:58]} O-O {[%emt 0:03:31]} 9. Nd2 {[%emt 0:08:08]} Ba6 {[%emt 0:04:03]} 10. Nd3 {[%emt 0:04:06]} Bb6 {[%emt 0:08:41]} 11. a4 {[%emt 0:06:01]} Bxd3 {[%emt 0:07:40]} 12. cxd3 {[%emt 0:00:04]} a5 {[%emt 0:02:18]} 13. Nf3 {[%emt 0:01:42]} d5 {[%emt 0:16:35]} 14. e5 {[%emt 0:03:12]} Nd7 {[%emt 0:00:57]} 15. d4 {[%emt 0:03:45]} c5 {[%emt 0:03:47]} 16. Re1 {[%emt 0:02:38]} Nb8 {[%emt 0:09:05]} 17. Ng5 {[%emt 0:04:58]} Qe7 {[%emt 0:02:43]} 18. Nf3 {[%emt 0:13:39]} cxd4 {[%emt 0:01:11]} 19. Nxd4 {[%emt 0:05:58]} Nd7 {[%emt 0:07:24]} 20. Nf3 {[%emt 0:03:21]} c6 {[%emt 0:06:56]} 21. Bg5 {[%emt 0:08:40]} Bxf2+ {[%emt 0:07:24]} 22. Kxf2 {[%emt 0:06:24]} Qxg5 {[%emt 0:00:12]} 23. e6 {[%emt 0:00:45]} Ne5 {[%emt 0:01:19]} 24. Qd4 {[%emt 0:03:31]} Ng6 {[%emt 0:05:44]} 25. e7 {[%emt 0:05:49]} Nxe7 {[%emt 0:01:50]} 26. h4 {[%emt 0:00:10]} Nf5 {[%emt 0:01:05]} 27. Qxd5+ {[%emt 0:00:29]} cxd5 {[%emt 0:00:20]} 28. hxg5 {[%emt 0:00:03]} Rab8 {[%emt 0:00:51]} 29. Rab1 {[%emt 0:01:08]} Rb4 {[%emt 0:00:58]} 30. Re5 {[%emt 0:01:31]} Rxa4 {[%emt 0:00:51]} 31. Rxd5 {[%emt 0:00:20]} Nh4 {[%emt 0:00:26]} 32. Rd3 {[%emt 0:01:08]} Rg4 {[%emt 0:00:20]} 33. g3 {[%emt 0:00:29]} Nxf3 {[%emt 0:00:09]} 34. Rxf3 {[%emt 0:00:01]} Rxf3+ {[%emt 0:00:02]} 35. Kxf3 {[%emt 0:00:06]} Rxg5 {[%emt 0:00:17]} 36. Rc1 {[%emt 0:01:43]} h5 {[%emt 0:01:03]} 37. Kf4 {[%emt 0:01:33]} Rb5 {[%emt 0:00:02]} 38. Rc8+ {[%emt 0:00:30]} Kh7 {[%emt 0:00:06]} 39. Ra8 {[%emt 0:00:46]} g6 {[%emt 0:00:16]} 40. Ra7+ {[%emt 0:01:04]} Kh6 {[%emt 0:00:04]} 41. Ra6 {[%emt 0:00:07]} Rf5+ {[%emt 0:00:46]} 42. Ke3 {[%emt 0:00:11]} Kg5 {[%emt 0:00:05]} 43. Rb6 {[%emt 0:01:59]} Kh6 {[%emt 0:02:34]} 44. Ra6 {[%emt 0:00:17]} Rb5 {[%emt 0:01:25]} 45. Kf4 {[%emt 0:01:22]} Rb4+ {[%emt 0:00:42]} 46. Kf3 Ra4 {[%emt 0:00:30]} 47. Rb6 Rb4 {[%emt 0:00:30]} 48. Ra6 Rxb2 {[%emt 0:00:30]} 49. Rxa5 Rc2 {[%emt 0:00:30]} 50. Ke3 Rb2 {[%emt 0:00:30]} 51. Kf3 Rc2 {[%emt 0:00:30]} 1/2-1/2

[Event "EYCC G10-ch 2024"]
[Site "Prague"]
[Date "2024.08.28"]
[Round "6.3"]
[White "Rekhviashvili, Mariam"]
[Black "Rzadkowska, Lila"]
[Result "0-1"]
[ECO "C68"]
[WhiteElo "1542"]
[BlackElo "1794"]
[Annotator "NA RC COMBH"]
[PlyCount "110"]
[EventDate "2024.08.19"]
[EventType "swiss"]
[EventCountry "CZE"]
[SourceTitle "playchess.com"]
[Source "ChessBase"]
[SourceQuality "1"]
[TimeControl "5400+30"]

1. e4 {[%emt 0:00:02]} e5 {[%emt 0:00:06]} 2. Nf3 {[%emt 0:01:35]} Nc6 {[%emt 0:00:08]} 3. Bb5 {[%emt 0:00:06]} a6 {[%emt 0:00:09]} 4. Bxc6 {[%emt 0:00:03]} dxc6 {[%emt 0:00:05]} 5. O-O {[%emt 0:00:03]} Qf6 {[%emt 0:00:12]} 6. d3 {[%emt 0:00:42]} Ne7 {[%emt 0:00:29]} 7. Nbd2 {[%emt 0:07:38]} Ng6 {[%emt 0:01:37]} 8. Re1 {[%emt 0:02:11]} Be7 {[%emt 0:05:29]} 9. h3 O-O {[%emt 0:12:02]} 10. Nc4 {[%emt 0:04:51]} b5 {[%emt 0:02:02]} 11. Bg5 {[%emt 0:03:59]} Qe6 {[%emt 0:01:20]} 12. Bxe7 {[%emt 0:00:09]} Qxe7 {[%emt 0:00:08]} 13. Ne3 {[%emt 0:00:49]} Qf6 {[%emt 0:03:51]} 14. d4 {[%emt 0:06:00]} Rd8 {[%emt 0:02:17]} 15. c3 {[%emt 0:09:11]} Be6 {[%emt 0:03:37]} 16. Nxe5 {[%emt 0:09:41]} Nxe5 {[%emt 0:00:53]} 17. dxe5 {[%emt 0:00:34]} Qg5 {[%emt 0:02:33]} 18. Qf3 {[%emt 0:01:20]} Rd2 {[%emt 0:01:15]} 19. b3 {[%emt 0:01:59]} Qxe5 {[%emt 0:00:29]} 20. Nf5 {[%emt 0:05:58]} Bxf5 {[%emt 0:05:33]} 21. exf5 {[%emt 0:00:16]} Qf6 {[%emt 0:00:51]} 22. Qe3 {[%emt 0:00:34]} Qd8 {[%emt 0:02:07]} 23. Qe5 {[%emt 0:18:40]} Rd5 {[%emt 0:04:08]} 24. Qe4 {[%emt 0:01:50]} Qd7 {[%emt 0:05:26]} 25. Qe7 {[%emt 0:05:12]} Qxe7 {[%emt 0:01:32]} 26. Rxe7 {[%emt 0:00:06]} Rc8 {[%emt 0:00:10]} 27. Rae1 {[%emt 0:00:49]} Kf8 {[%emt 0:00:10]} 28. g4 {[%emt 0:01:12]} Rd2 {[%emt 0:02:40]} 29. R1e2 {[%emt 0:00:18]} Rxe2 {[%emt 0:01:24]} 30. Rxe2 {[%emt 0:00:10]} Rd8 {[%emt 0:00:18]} 31. Kf1 {[%emt 0:00:08]} Rd3 {[%emt 0:03:13]} 32. Re3 {[%emt 0:00:07]} Rxe3 {[%emt 0:09:56]} 33. fxe3 {[%emt 0:00:06]} c5 {[%emt 0:00:10]} 34. Ke2 {[%emt 0:00:22]} Ke7 {[%emt 0:00:17]} 35. Kf3 {[%emt 0:00:47]} f6 {[%emt 0:02:03]} 36. e4 {[%emt 0:02:02]} Kd6 {[%emt 0:00:27]} 37. Kf4 {[%emt 0:00:19]} a5 {[%emt 0:01:44]} 38. a4 {[%emt 0:01:52]} c4 {[%emt 0:02:50]} 39. Ke3 {[%emt 0:02:53]} cxb3 {[%emt 0:00:22]} 40. Kd2 {[%emt 0:00:07]} bxa4 {[%emt 0:00:09]} 41. h4 {[%emt 0:00:32]} a3 {[%emt 0:00:18]} 42. Kc1 {[%emt 0:00:07]} Ke5 {[%emt 0:00:30]} 43. g5 {[%emt 0:00:09]} Kxe4 {[%emt 0:00:25]} 44. h5 {[%emt 0:00:14]} Kxf5 {[%emt 0:00:16]} 45. gxf6 {[%emt 0:00:17]} gxf6 {[%emt 0:00:14]} 46. c4 {[%emt 0:00:02]} Ke4 {[%emt 0:00:14]} 47. c5 {[%emt 0:00:05]} f5 {[%emt 0:00:18]} 48. h6 {[%emt 0:00:03]} f4 {[%emt 0:00:06]} 49. c6 {[%emt 0:00:02]} f3 {[%emt 0:00:26]} 50. Kd2 a2 {[%emt 0:00:14]} 51. Kc3 {[%emt 0:00:16]} a1=Q+ {[%emt 0:00:09]} 52. Kxb3 {[%emt 0:00:22]} Qc1 {[%emt 0:00:33]} 53. Ka2 {[%emt 0:00:08]} f2 {[%emt 0:00:09]} 54. Kb3 {[%emt 0:00:03]} f1=R {[%emt 0:00:18]} 55. Ka4 {[%emt 0:00:15]} Qb2 {[%emt 0:00:21]} 0-1

[Event "EYCC G10-ch 2024"]
[Site "Prague"]
[Date "2024.08.28"]
[Round "6.4"]
[White "Anistoroaei, Maria"]
[Black "Stoica, Melina-Theodora"]
[Result "1-0"]
[ECO "A13"]
[WhiteElo "1627"]
[BlackElo "1576"]
[Annotator "NA RC COMBH"]
[PlyCount "81"]
[EventDate "2024.08.19"]
[EventType "swiss"]
[EventCountry "CZE"]
[SourceTitle "playchess.com"]
[Source "ChessBase"]
[SourceQuality "1"]
[TimeControl "5400+30"]

1. c4 {[%emt 0:00:13]} e6 {[%emt 0:00:08]} 2. g3 {[%emt 0:00:28]} Nf6 {[%emt 0:01:30]} 3. Bg2 {[%emt 0:00:10]} Be7 {[%emt 0:01:33]} 4. Nf3 {[%emt 0:00:13]} O-O {[%emt 0:01:47]} 5. O-O {[%emt 0:00:15]} d5 {[%emt 0:05:37]} 6. Qc2 {[%emt 0:00:09]} c5 {[%emt 0:04:43]} 7. d4 cxd4 {[%emt 0:15:04]} 8. cxd5 {[%emt 0:16:20]} Nxd5 {[%emt 0:10:00]} 9. Nxd4 {[%emt 0:01:51]} Qb6 {[%emt 0:11:36]} 10. Qc4 {[%emt 0:25:48]} Bf6 {[%emt 0:11:53]} 11. Nb3 {[%emt 0:02:24]} Bd7 {[%emt 0:09:18]} 12. Re1 {[%emt 0:29:56]} Rc8 {[%emt 0:01:44]} 13. Qg4 {[%emt 0:05:18]} e5 {[%emt 0:08:18]} 14. Qh5 {[%emt 0:01:19]} Bc6 {[%emt 0:04:22]} 15. Be4 {[%emt 0:01:03]} g6 {[%emt 0:01:42]} 16. Qf3 {[%emt 0:01:25]} Nb4 {[%emt 0:05:55]} 17. Qxf6 {[%emt 0:07:03]} Bxe4 {[%emt 0:00:06]} 18. Qxe5 {[%emt 0:00:09]} Nc2 {[%emt 0:02:14]} 19. Bh6 {[%emt 0:00:49]} f6 {[%emt 0:00:33]} 20. Qe7 {[%emt 0:00:12]} Qc7 {[%emt 0:00:18]} 21. Qe6+ {[%emt 0:00:21]} Kh8 {[%emt 0:00:46]} 22. Qxf6+ {[%emt 0:00:22]} Kg8 {[%emt 0:00:08]} 23. Qe6+ {[%emt 0:04:34]} Kh8 {[%emt 0:00:05]} 24. Qxe4 {[%emt 0:01:13]} Nxe1 {[%emt 0:00:17]} 25. Nc3 {[%emt 0:00:14]} Nc6 {[%emt 0:01:44]} 26. Rxe1 {[%emt 0:00:26]} Re8 {[%emt 0:00:17]} 27. Qf3 {[%emt 0:01:03]} Qe7 {[%emt 0:00:28]} 28. Nd5 {[%emt 0:00:28]} Qd6 {[%emt 0:01:05]} 29. Qf7 {[%emt 0:00:24]} Rg8 {[%emt 0:00:26]} 30. Nf6 {[%emt 0:00:09]} Qe7 {[%emt 0:00:52]} 31. Qxe7 {[%emt 0:00:24]} Nxe7 {[%emt 0:00:07]} 32. Nxg8 {[%emt 0:00:06]} Rxg8 {[%emt 0:00:06]} 33. Bg5 {[%emt 0:00:47]} Re8 {[%emt 0:00:19]} 34. Bxe7 {[%emt 0:00:17]} Rxe7 {[%emt 0:00:06]} 35. e3 {[%emt 0:00:17]} Rc7 {[%emt 0:00:14]} 36. Rc1 {[%emt 0:00:06]} Rxc1+ {[%emt 0:00:07]} 37. Nxc1 {[%emt 0:00:04]} Kg7 {[%emt 0:00:07]} 38. Kg2 {[%emt 0:00:05]} Kf6 {[%emt 0:00:04]} 39. Kf3 {[%emt 0:00:01]} b6 {[%emt 0:00:18]} 40. Ke4 {[%emt 0:00:04]} Ke6 {[%emt 0:00:05]} 41. Ne2 {[%emt 0:00:25]} 1-0

[Event "EYCC G10-ch 2024"]
[Site "Prague"]
[Date "2024.08.28"]
[Round "6.5"]
[White "Constantin-Ciuntu, Anne-Sophie"]
[Black "Wang, Yi Xuan"]
[Result "1-0"]
[ECO "B23"]
[WhiteElo "1641"]
[BlackElo "1734"]
[Annotator "NA RC COMBH"]
[PlyCount "133"]
[EventDate "2024.08.19"]
[EventType "swiss"]
[EventCountry "CZE"]
[SourceTitle "playchess.com"]
[Source "ChessBase"]
[SourceQuality "1"]
[TimeControl "5400+30"]

1. e4 {[%emt 0:00:03]} c5 {[%emt 0:00:07]} 2. Nc3 {[%emt 0:00:06]} g6 {[%emt 0:00:04]} 3. d4 {[%emt 0:00:05]} cxd4 {[%emt 0:00:11]} 4. Qxd4 {[%emt 0:00:08]} Nf6 {[%emt 0:00:18]} 5. Be3 {[%emt 0:00:12]} Nc6 {[%emt 0:03:05]} 6. Qd2 {[%emt 0:00:08]} d6 {[%emt 0:08:52]} 7. f3 {[%emt 0:00:09]} Bd7 {[%emt 0:01:27]} 8. Nge2 {[%emt 0:00:12]} Rc8 {[%emt 0:03:38]} 9. O-O-O {[%emt 0:05:18]} Ne5 10. Nd4 {[%emt 0:07:57]} a6 {[%emt 0:07:15]} 11. h3 {[%emt 0:11:26]} b5 {[%emt 0:01:14]} 12. a3 {[%emt 0:08:33]} Bc6 {[%emt 0:08:14]} 13. Nxc6 {[%emt 0:09:43]} Nxc6 {[%emt 0:01:30]} 14. g4 {[%emt 0:08:09]} b4 {[%emt 0:08:50]} 15. Bxa6 {[%emt 0:06:09]} Rb8 {[%emt 0:06:09]} 16. Bb5 {[%emt 0:04:00]} bxc3 {[%emt 0:02:28]} 17. Bxc6+ {[%emt 0:00:14]} Nd7 {[%emt 0:00:24]} 18. Qxc3 {[%emt 0:00:50]} Rg8 {[%emt 0:01:41]} 19. e5 {[%emt 0:11:18]} Bg7 {[%emt 0:00:33]} 20. Bd4 {[%emt 0:00:25]} Bh6+ {[%emt 0:02:04]} 21. Kb1 {[%emt 0:00:35]} Kf8 {[%emt 0:01:12]} 22. exd6 {[%emt 0:02:16]} exd6 {[%emt 0:00:13]} 23. Bxd7 {[%emt 0:01:45]} Qxd7 {[%emt 0:00:29]} 24. Be5 {[%emt 0:00:49]} Bg7 {[%emt 0:04:14]} 25. Bxd6+ {[%emt 0:00:10]} Qxd6 {[%emt 0:00:42]} 26. Qxg7+ {[%emt 0:00:02]} Kxg7 {[%emt 0:00:39]} 27. Rxd6 {[%emt 0:00:07]} Rge8 {[%emt 0:00:18]} 28. Rhd1 {[%emt 0:00:35]} Re3 {[%emt 0:01:34]} 29. R6d3 {[%emt 0:00:39]} Re2 {[%emt 0:00:48]} 30. b4 {[%emt 0:01:09]} Rc8 {[%emt 0:01:00]} 31. R1d2 {[%emt 0:00:42]} Re1+ {[%emt 0:00:30]} 32. Kb2 {[%emt 0:00:18]} Rh1 {[%emt 0:00:28]} 33. f4 {[%emt 0:00:43]} Rc4 {[%emt 0:00:40]} 34. Rd4 {[%emt 0:00:54]} Rc7 {[%emt 0:00:43]} 35. R2d3 {[%emt 0:00:28]} Re7 {[%emt 0:00:41]} 36. Rd1 {[%emt 0:02:14]} Rxh3 {[%emt 0:00:10]} 37. b5 {[%emt 0:00:20]} Rb7 {[%emt 0:00:51]} 38. a4 {[%emt 0:00:26]} Rh4 {[%emt 0:02:18]} 39. Rg1 {[%emt 0:00:58]} Rh2 {[%emt 0:00:35]} 40. Rb4 {[%emt 0:00:42]} Rc7 {[%emt 0:00:50]} 41. Rc1 {[%emt 0:00:12]} Rg2 {[%emt 0:00:33]} 42. b6 {[%emt 0:00:13]} Rb7 {[%emt 0:02:04]} 43. a5 {[%emt 0:00:26]} Rxg4 {[%emt 0:01:34]} 44. a6 {[%emt 0:00:07]} Rxf4 {[%emt 0:01:53]} 45. Rxf4 {[%emt 0:00:14]} Rxb6+ {[%emt 0:00:04]} 46. Kc3 {[%emt 0:00:18]} Rxa6 {[%emt 0:00:06]} 47. Kb4 {[%emt 0:00:15]} f5 {[%emt 0:00:45]} 48. c4 {[%emt 0:00:10]} Kf6 {[%emt 0:00:25]} 49. Rcf1 {[%emt 0:00:37]} h5 {[%emt 0:00:25]} 50. Kb5 {[%emt 0:00:21]} Ra8 {[%emt 0:00:18]} 51. c5 {[%emt 0:04:22]} Rh8 {[%emt 0:00:19]} 52. c6 {[%emt 0:01:07]} h4 {[%emt 0:00:09]} 53. c7 {[%emt 0:00:20]} h3 {[%emt 0:01:42]} 54. Rh1 {[%emt 0:00:12]} g5 {[%emt 0:00:38]} 55. Rxh3 {[%emt 0:00:41]} Rxh3 {[%emt 0:00:49]} 56. Rxf5+ {[%emt 0:00:13]} Kxf5 {[%emt 0:00:55]} 57. c8=Q+ {[%emt 0:00:02]} Kf4 {[%emt 0:00:10]} 58. Qxh3 {[%emt 0:00:06]} g4 {[%emt 0:00:04]} 59. Qg2 {[%emt 0:00:08]} g3 {[%emt 0:00:05]} 60. Kc4 {[%emt 0:00:05]} Kg4 {[%emt 0:00:17]} 61. Kd4 {[%emt 0:00:09]} Kh4 {[%emt 0:00:26]} 62. Ke3 {[%emt 0:00:13]} Kg4 {[%emt 0:00:09]} 63. Ke4 {[%emt 0:00:06]} Kh4 {[%emt 0:00:11]} 64. Kf4 {[%emt 0:00:08]} Kh5 {[%emt 0:00:12]} 65. Qxg3 {[%emt 0:00:06]} Kh6 {[%emt 0:00:11]} 66. Qg8 {[%emt 0:00:04]} Kh5 {[%emt 0:00:13]} 67. Qg5# {[%emt 0:00:04]} 1-0

[Event "EYCC G10-ch 2024"]
[Site "Prague"]
[Date "2024.08.28"]
[Round "6.6"]
[White "Hatuk, Neris"]
[Black "Tykalova, Barbora"]
[Result "0-1"]
[ECO "B08"]
[WhiteElo "1671"]
[BlackElo "1580"]
[Annotator "NA RC COMBH"]
[PlyCount "89"]
[EventDate "2024.08.19"]
[EventType "swiss"]
[EventCountry "CZE"]
[SourceTitle "playchess.com"]
[Source "ChessBase"]
[SourceQuality "1"]
[TimeControl "5400+30"]

1. e4 {[%emt 0:00:01]} d6 {[%emt 0:00:06]} 2. d4 {[%emt 0:00:25]} Nf6 {[%emt 0:00:06]} 3. Nc3 {[%emt 0:00:07]} g6 {[%emt 0:00:29]} 4. Nf3 {[%emt 0:00:07]} Bg7 {[%emt 0:00:58]} 5. Be3 {[%emt 0:00:12]} O-O {[%emt 0:00:48]} 6. Bd3 {[%emt 0:00:32]} Nbd7 {[%emt 0:02:29]} 7. Qd2 {[%emt 0:03:39]} c6 {[%emt 0:01:10]} 8. Bh6 {[%emt 0:04:02]} Qc7 {[%emt 0:00:29]} 9. Bxg7 {[%emt 0:01:31]} Kxg7 {[%emt 0:00:09]} 10. h4 {[%emt 0:01:42]} e5 {[%emt 0:01:32]} 11. h5 {[%emt 0:00:59]} Nxh5 {[%emt 0:02:15]} 12. Qg5 {[%emt 0:01:21]} h6 {[%emt 0:01:17]} 13. Qh4 {[%emt 0:00:41]} Ndf6 14. Rg1 {[%emt 0:05:20]} exd4 {[%emt 0:02:23]} 15. Ne2 {[%emt 0:04:40]} c5 {[%emt 0:03:49]} 16. b3 {[%emt 0:06:27]} Bg4 {[%emt 0:02:44]} 17. Ng3 {[%emt 0:02:15]} Qa5+ {[%emt 0:01:10]} 18. Nd2 {[%emt 0:01:24]} Nf4 {[%emt 0:03:00]} 19. f3 {[%emt 0:02:29]} Nxd3+ {[%emt 0:00:25]} 20. cxd3 {[%emt 0:00:06]} Qc3 {[%emt 0:01:37]} 21. Ke2 {[%emt 0:01:11]} Bh5 {[%emt 0:01:50]} 22. Rgc1 {[%emt 0:01:39]} Qa5 {[%emt 0:01:39]} 23. Nc4 {[%emt 0:01:22]} Qc7 {[%emt 0:00:27]} 24. Qf4 {[%emt 0:01:33]} Rad8 {[%emt 0:00:08]} 25. Rh1 {[%emt 0:01:24]} Rfe8 {[%emt 0:04:33]} 26. Qh4 {[%emt 0:06:12]} d5 {[%emt 0:02:26]} 27. Nxh5+ {[%emt 0:00:09]} Nxh5 {[%emt 0:00:14]} 28. g4 {[%emt 0:00:40]} Ng3+ {[%emt 0:00:15]} 29. Kd2 {[%emt 0:00:09]} Nxh1 {[%emt 0:00:18]} 30. Rxh1 {[%emt 0:00:05]} Qf4+ {[%emt 0:00:13]} 31. Kc2 {[%emt 0:00:12]} dxc4 {[%emt 0:00:24]} 32. bxc4 {[%emt 0:00:05]} Rh8 {[%emt 0:01:39]} 33. Re1 {[%emt 0:01:32]} Qxf3 {[%emt 0:00:31]} 34. e5 {[%emt 0:00:08]} g5 {[%emt 0:00:43]} 35. Qh2 {[%emt 0:00:11]} Rde8 {[%emt 0:01:07]} 36. Re4 {[%emt 0:00:39]} Qf1 {[%emt 0:00:47]} 37. Qd2 {[%emt 0:00:34]} Qa1 {[%emt 0:00:26]} 38. Qa5 {[%emt 0:00:09]} b6 {[%emt 0:00:14]} 39. Qa3 {[%emt 0:00:16]} Qc3+ {[%emt 0:02:05]} 40. Qxc3 {[%emt 0:00:04]} dxc3 {[%emt 0:00:04]} 41. Kxc3 {[%emt 0:00:02]} f6 {[%emt 0:00:26]} 42. e6 {[%emt 0:00:09]} Re7 {[%emt 0:00:11]} 43. d4 {[%emt 0:00:07]} cxd4+ {[%emt 0:00:40]} 44. Kxd4 {[%emt 0:00:03]} Rd8+ {[%emt 0:00:12]} 45. Kc3 0-1